bitfinex/quotes_BTCUSD_20250812
["timestamp","ask_amount","ask_price","bid_price","bid_amount"]
[1755028473969,0.18456131,119680.0,119670.0,0.12816]
[1755028474191,0.69849711,119680.0,119670.0,0.12816]
[1755028474406,0.70157711,119680.0,119670.0,0.1306]
[1755028476042,0.18666131,119680.0,119670.0,0.13267]
[1755028476376,0.18456131,119680.0,119670.0,0.30472626]
[1755028476585,0.18556131,119680.0,119670.0,0.17956626]
[1755028476785,0.18556131,119680.0,119670.0,0.30772626]
[1755028478070,0.205565,119680.0,119670.0,0.30772626]
[1755028478903,0.18556131,119680.0,119670.0,0.30479626]
[1755028479906,0.70257711,119680.0,119670.0,0.1356]
[1755028480361,0.18766131,119680.0,119670.0,0.30479626]
[1755028480560,0.01844902,119680.0,119670.0,0.30772626]
[1755028482625,0.18556131,119680.0,119670.0,0.30772626]
[1755028483132,0.18556131,119680.0,119670.0,0.30479626]
[1755028483390,0.01844902,119680.0,119670.0,0.30479626]
[1755028483602,0.18556131,119680.0,119670.0,0.30479626]
[1755028484424,0.2372438,119680.0,119670.0,0.30272626]
[1755028484627,0.2372438,119680.0,119670.0,0.30479626]
[1755028486096,0.01844902,119680.0,119670.0,0.30479626]
[1755028486420,0.01844902,119680.0,119670.0,0.30772626]
[1755028486750,0.18556131,119680.0,119670.0,0.30479626]
[1755028487513,0.19074131,119680.0,119670.0,0.30272626]
[1755028488011,0.70257711,119680.0,119670.0,0.30272626]
[1755028488246,0.70257711,119680.0,119670.0,0.13316]
[1755028488247,0.78506154,119680.0,119670.0,0.13316]
[1755028488607,0.78506154,119680.0,119670.0,0.005]
[1755028488608,0.40138574,119680.0,119670.0,0.005]
[1755028488820,0.91322154,119680.0,119670.0,0.00744]
[1755028489024,0.99594479,119680.0,119670.0,0.00744]
[1755028489223,0.99594479,119680.0,119670.0,0.005]
[1755028489932,0.99594479,119680.0,119670.0,0.00744]
[1755028490140,0.99594479,119680.0,119670.0,0.005]
[1755028490754,1.02102779,119680.0,119670.0,0.005]
[1755028493523,1.02102779,119680.0,119670.0,0.00744]
[1755028497322,0.50919199,119680.0,119670.0,0.00744]
[1755028497745,0.42670756,119680.0,119670.0,0.00744]
[1755028497880,0.29336756,119680.0,119670.0,0.00951]
[1755028498083,0.29336756,119680.0,119670.0,0.01244]
[1755028498285,0.29336756,119680.0,119670.0,0.00951]
[1755028498492,0.29236756,119680.0,119670.0,0.00451]
[1755028498696,0.38003199,119680.0,119670.0,0.00651]
[1755028498886,0.38003199,119680.0,119670.0,0.00751]
[1755028500212,0.89186779,119680.0,119670.0,0.00544]
[1755028500869,0.38003199,119680.0,119670.0,0.00544]
[1755028501060,0.89186779,119680.0,119670.0,0.00544]
[1755028501645,0.89186779,119680.0,119670.0,0.003]
[1755028502045,0.89186779,119680.0,119670.0,0.00544]
[1755028502263,0.89186779,119680.0,119670.0,0.003]
[1755028502479,0.89186779,119680.0,119670.0,0.00544]
[1755028505156,0.89186779,119680.0,119670.0,0.003]
[1755028506127,1.40370359,119680.0,119670.0,0.003]
[1755028508599,1.53210359,119680.0,119670.0,0.003]
[1755028509157,1.02026779,119680.0,119670.0,0.003]
[1755028509327,1.53210359,119680.0,119670.0,0.003]
[1755028509907,1.02026779,119680.0,119670.0,0.003]
[1755028510114,1.53210359,119680.0,119670.0,0.003]
[1755028510685,0.50843199,119680.0,119670.0,0.003]
[1755028510889,1.02026779,119680.0,119670.0,0.003]
[1755028513316,1.53210359,119680.0,119670.0,0.003]
[1755028513911,1.53300359,119680.0,119670.0,0.003]
[1755028516082,1.02116779,119680.0,119670.0,0.003]
[1755028518113,0.50933199,119680.0,119670.0,0.003]
[1755028518320,1.02116779,119680.0,119670.0,0.003]
[1755028524241,1.02116779,119680.0,119670.0,0.00514]
[1755028524451,0.89276779,119680.0,119670.0,0.00514]
[1755028524653,1.01670779,119680.0,119670.0,0.00758]
[1755028525345,0.29326756,119680.0,119670.0,0.01077]
[1755028525547,0.16801229,119680.0,119670.0,0.17998533]
[1755028525753,0.18546131,119680.0,119670.0,0.17789626]
[1755028525950,0.16801229,119680.0,119670.0,0.17789626]
[1755028526371,0.18546131,119680.0,119670.0,0.17789626]
[1755028526915,0.18546131,119680.0,119670.0,0.01077]
[1755028527067,0.18546131,119680.0,119670.0,0.01285907]
[1755028527795,0.18546131,119680.0,119670.0,0.17998533]
[1755028527994,0.18546131,119680.0,119670.0,0.17789626]
[1755028529019,0.18546131,119680.0,119670.0,0.01077]
[1755028529218,0.18546131,119680.0,119670.0,0.01285907]
[1755028529438,0.26794574,119680.0,119670.0,0.17998533]
[1755028529644,0.26794574,119680.0,119670.0,0.17789626]
[1755028529760,0.26794574,119680.0,119670.0,0.01077]
[1755028529961,0.26794574,119680.0,119670.0,0.01285907]
[1755028530184,0.26794574,119680.0,119670.0,0.17998533]
[1755028530404,0.26794574,119680.0,119670.0,0.17789626]
[1755028530600,0.26794574,119680.0,119670.0,0.01077]
[1755028530800,0.26794574,119680.0,119670.0,0.01285907]
[1755028532374,0.18546131,119680.0,119670.0,0.01285907]
[1755028532999,0.18546131,119680.0,119670.0,0.17998533]
[1755028533196,0.0009,119680.0,119670.0,0.17789626]
[1755028533345,0.0009,119680.0,119670.0,0.68973206]
[1755028533547,0.0009,119680.0,119670.0,0.17789626]
[1755028544899,0.17336229,119680.0,119670.0,0.17470626]
[1755028545740,0.17016229,119680.0,119670.0,0.17470626]
[1755028546061,0.16801229,119680.0,119670.0,0.17470626]
[1755028546429,0.0009,119680.0,119670.0,0.17784626]
[1755028547074,0.16801229,119680.0,119670.0,0.17784626]
[1755028547782,0.0009,119680.0,119670.0,0.17784626]
[1755028556937,0.16801229,119680.0,119670.0,0.17470626]
[1755028557138,0.74384775,119680.0,119670.0,0.17470626]
[1755028557557,0.74599775,119680.0,119670.0,0.17470626]
[1755028557968,0.74919775,119680.0,119670.0,0.30096626]
[1755028558806,0.68529004,119680.0,119670.0,0.30096626]
[1755028560456,0.17336229,119680.0,119670.0,0.30302626]
[1755028560678,0.16801229,119680.0,119670.0,0.30302626]
[1755028561103,0.68487004,119680.0,119670.0,0.30096626]
[1755028561246,0.17294229,119680.0,119670.0,0.30096626]
[1755028562117,0.25542672,119680.0,119670.0,0.30096626]
[1755028562925,0.68487004,119680.0,119670.0,0.30096626]
[1755028563118,0.68487004,119680.0,119670.0,0.13128]
[1755028563317,0.68487004,119680.0,119670.0,0.13372]
[1755028563561,0.68487004,119680.0,119670.0,0.30084626]
[1755028564086,0.68487004,119680.0,119670.0,0.13372]
[1755028564915,0.76735447,119680.0,119670.0,0.13372]
[1755028565116,0.25542672,119680.0,119670.0,0.13372]
[1755028565318,0.68487004,119680.0,119670.0,0.13372]
[1755028565547,0.68487004,119680.0,119670.0,0.13128]
[1755028565874,0.68487004,119680.0,119670.0,0.13372]
[1755028566085,0.68487004,119680.0,119670.0,0.13128]
[1755028566294,0.17294229,119680.0,119670.0,0.13372]
[1755028566524,0.68487004,119680.0,119670.0,0.13128]
[1755028566746,0.68487004,119680.0,119670.0,0.13372]
[1755028566970,0.76735447,119680.0,119670.0,0.13372]
[1755028567803,0.25542672,119680.0,119670.0,0.13372]
[1755028568053,0.68487004,119680.0,119670.0,0.13372]
[1755028570502,0.68487004,119680.0,119670.0,0.13128]
[1755028570723,0.70231906,119680.0,119670.0,0.00544]
[1755028570942,0.70231906,119680.0,119670.0,0.13392]
[1755028572138,0.19039131,119680.0,119670.0,0.13392]
[1755028572381,0.70231906,119680.0,119670.0,0.13392]
[1755028572598,1.34569902,119680.0,119670.0,0.00544]
[1755028572847,0.32184352,119680.0,119670.0,0.00544]
[1755028573082,0.85885627,119680.0,119670.0,0.00544]
[1755028573789,0.34692852,119680.0,119670.0,0.00544]
[1755028574004,0.85885627,119680.0,119670.0,0.00544]
[1755028574898,0.34692852,119680.0,119670.0,0.00544]
[1755028575103,0.85885627,119680.0,119670.0,0.00544]
[1755028575463,0.34692852,119680.0,119670.0,0.00544]
[1755028575662,0.29819956,119680.0,119670.0,0.00544]
[1755028575884,0.29524956,119680.0,119670.0,0.17462626]
[1755028576093,0.18546131,119680.0,119670.0,0.17462626]
[1755028576972,0.18546131,119680.0,119670.0,0.17777626]
[1755028577558,0.01834902,119680.0,119670.0,0.17777626]
[1755028579238,0.0009,119680.0,119670.0,0.17777626]
[1755028581612,0.0009,119680.0,119670.0,0.17462626]
[1755028585801,0.17294229,119680.0,119670.0,0.17462626]
[1755028586360,0.76735447,119680.0,119670.0,0.17256626]
[1755028586702,0.76735447,119680.0,119670.0,0.003]
[1755028586907,0.76735447,119680.0,119670.0,0.13448]
[1755028587508,0.76735447,119680.0,119670.0,0.13204]
[1755028587888,0.76735447,119680.0,119670.0,0.13448]
[1755028588399,0.78480349,119680.0,119670.0,0.00544]
[1755028588588,0.78480349,119680.0,119670.0,0.13448]
[1755028589587,0.27287574,119680.0,119670.0,0.13448]
[1755028589794,0.78480349,119680.0,119670.0,0.13448]
[1755028590474,0.27287574,119680.0,119670.0,0.30160626]
[1755028590618,0.19039131,119680.0,119670.0,0.30160626]
[1755028590817,0.70231906,119680.0,119670.0,0.30160626]
[1755028591491,0.70231906,119680.0,119670.0,0.13448]
[1755028591904,0.70231906,119680.0,119670.0,0.30160626]
[1755028592082,0.19039131,119680.0,119670.0,0.30160626]
[1755028592292,0.70231906,119680.0,119670.0,0.30160626]
[1755028592466,0.70231906,119680.0,119670.0,0.13448]
[1755028592683,0.19039131,119680.0,119670.0,0.13448]
[1755028592887,0.70231906,119680.0,119670.0,0.13448]
[1755028593527,0.70231906,119680.0,119670.0,0.30160626]
[1755028593730,0.01834902,119680.0,119670.0,0.30361626]
[1755028593856,0.0009,119680.0,119670.0,0.30668626]
[1755028594263,0.0009,119680.0,119670.0,0.30361626]
[1755028594661,0.16801229,119680.0,119670.0,0.30361626]
[1755028595113,0.68523004,119680.0,119670.0,0.13448]
[1755028596415,0.17330229,119680.0,119670.0,0.30160626]
[1755028596626,0.17330229,119680.0,119670.0,0.13448]
[1755028596966,0.68523004,119680.0,119670.0,0.13448]
[1755028598503,0.68523004,119680.0,119670.0,0.13204]
[1755028598707,0.68523004,119680.0,119670.0,0.13448]
[1755028599116,0.76771447,119680.0,119670.0,0.13204]
[1755028599311,0.76771447,119680.0,119670.0,0.13448]
[1755028599971,0.76771447,119680.0,119670.0,0.13204]
[1755028600175,0.76771447,119680.0,119670.0,0.13448]
[1755028601108,0.76771447,119680.0,119670.0,0.30160626]
[1755028601306,0.76771447,119680.0,119670.0,0.30361626]
[1755028602128,0.25578672,119680.0,119670.0,0.30361626]
[1755028603109,0.25578672,119680.0,119670.0,0.13448]
[1755028603282,0.76771447,119680.0,119670.0,0.13448]
[1755028604311,0.76771447,119680.0,119670.0,0.30160626]
[1755028604721,0.76771447,119680.0,119670.0,0.13448]
[1755028605128,0.76771447,119680.0,119670.0,0.13204]
[1755028605341,0.27323574,119680.0,119670.0,0.13448]
[1755028605557,0.70267906,119680.0,119670.0,0.13448]
[1755028608319,0.70267906,119680.0,119670.0,0.13192]
[1755028608510,0.70267906,119680.0,119670.0,0.13436]
[1755028608688,0.70267906,119680.0,119670.0,0.003]
[1755028608893,0.70267906,119680.0,119670.0,0.13436]
[1755028609312,0.78516349,119680.0,119670.0,0.13436]
[1755028610590,0.27010574,119680.0,119670.0,0.30349626]
[1755028610793,0.18762131,119680.0,119670.0,0.30349626]
[1755028610989,0.01834902,119680.0,119670.0,0.30656626]
[1755028611432,0.18546131,119680.0,119670.0,0.30656626]
[1755028611961,0.18546131,119680.0,119670.0,0.30349626]
[1755028612971,0.18762131,119680.0,119670.0,0.30349626]
[1755028613151,0.19075131,119680.0,119670.0,0.30349626]
[1755028613477,0.27323574,119680.0,119670.0,0.30349626]
[1755028613731,0.19075131,119680.0,119670.0,0.13637]
[1755028613882,0.19075131,119680.0,119670.0,0.30349626]
[1755028614423,0.19075131,119680.0,119670.0,0.13637]
[1755028615149,0.70267906,119680.0,119670.0,0.00544]
[1755028615303,0.70267906,119680.0,119670.0,0.13424]
[1755028615503,0.78516349,119680.0,119670.0,0.13424]
[1755028616063,0.70267906,119680.0,119670.0,0.13424]
[1755028616250,0.19075131,119680.0,119670.0,0.13424]
[1755028616472,0.70267906,119680.0,119670.0,0.13424]
[1755028616610,0.19075131,119680.0,119670.0,0.13424]
[1755028617244,0.19075131,119680.0,119670.0,0.30337626]
[1755028617445,0.18546131,119680.0,119670.0,0.30337626]
[1755028618320,0.01834902,119680.0,119670.0,0.30337626]
[1755028618586,0.0009,119680.0,119670.0,0.30644626]
[1755028620451,0.16801229,119680.0,119670.0,0.30337626]
[1755028620664,0.01968807,119680.0,119670.0,0.30337626]
[1755028620954,0.02479807,119680.0,119670.0,0.30337626]
[1755028621191,0.02182807,119680.0,119670.0,0.30337626]
[1755028621393,0.01968807,119680.0,119670.0,0.30337626]
[1755028622300,0.0009,119680.0,119670.0,0.30337626]
[1755028622601,0.0009,119680.0,119670.0,0.81824401]
[1755028623142,0.0009,119680.0,119670.0,0.30631626]
[1755028634715,0.0009,119680.0,119670.0,0.38903951]
[1755028634914,0.0009,119680.0,119670.0,1.54044645]
[1755028635139,0.0009,119680.0,119670.0,0.38903951]
[1755028635341,0.0009,119680.0,119670.0,0.98267898]
[1755028636401,0.0009,119680.0,119670.0,0.97967898]
[1755028636674,0.0009,119680.0,119670.0,1.55738245]
[1755028636892,0.0009,119680.0,119670.0,0.91765808]
[1755028637117,0.0009,119680.0,119670.0,0.91565808]
[1755028637444,0.0009,119680.0,119670.0,0.91765808]
[1755028637654,0.0009,119680.0,119670.0,0.91965808]
[1755028645376,0.0009,119680.0,119670.0,1.06965808]
[1755028645839,0.0009,119680.0,119670.0,0.55797551]
[1755028646028,0.0009,119680.0,119670.0,1.06965808]
[1755028646870,0.0009,119680.0,119670.0,0.55797551]
[1755028647173,0.0009,119680.0,119670.0,1.06965808]
[1755028647697,0.0009,119680.0,119670.0,0.55797551]
[1755028648015,0.0009,119680.0,119670.0,1.06965808]
[1755028648814,0.0009,119680.0,119670.0,0.55797551]
[1755028649039,0.0009,119680.0,119670.0,1.06965808]
[1755028650468,0.0009,119680.0,119670.0,0.58297551]
[1755028651036,0.0009,119680.0,119670.0,1.09465808]
[1755028651836,0.0009,119680.0,119670.0,1.09265808]
[1755028652205,0.0009,119680.0,119670.0,1.09565808]
[1755028652759,0.0009,119680.0,119670.0,0.58397551]
[1755028652986,0.0009,119680.0,119670.0,1.60534065]
[1755028653157,0.0009,119680.0,119670.0,1.09365808]
[1755028653357,0.0009,119680.0,119670.0,1.09665808]
[1755028653765,0.0009,119680.0,119670.0,0.58497551]
[1755028653973,0.0009,119680.0,119670.0,1.09665808]
[1755028655154,0.0009,119680.0,119670.0,0.93991808]
[1755028655501,0.00618,119680.0,119670.0,1.06843808]
[1755028655801,0.00306,119680.0,119670.0,1.06843808]
[1755028656039,0.0009,119680.0,119670.0,1.06843808]
[1755028656243,0.0009,119680.0,119670.0,1.09343808]
[1755028657594,0.0009,119680.0,119670.0,1.09643808]
[1755028661835,0.0009,119680.0,119670.0,1.09343808]
[1755028662139,0.0009,119680.0,119670.0,1.09643808]
[1755028664035,0.0009,119680.0,119670.0,1.09343808]
[1755028664281,0.00618,119680.0,119670.0,1.09343808]
[1755028664529,0.00618,119680.0,119670.0,1.06843808]
[1755028664795,0.00618,119680.0,119670.0,1.06634808]
[1755028666816,0.00618,119680.0,119670.0,0.55466551]
[1755028666996,0.00618,119680.0,119670.0,1.06634808]
[1755028667795,0.00618,119680.0,119670.0,0.93790808]
[1755028667978,0.00618,119680.0,119670.0,0.55458551]
[1755028669057,0.00618,119680.0,119670.0,1.06626808]
[1755028669253,0.00618,119680.0,119670.0,0.55458551]
[1755028669466,0.00618,119680.0,119670.0,0.40458551]
[1755028670016,0.00618,119680.0,119670.0,0.91626808]
[1755028671374,0.00618,119680.0,119670.0,0.38664951]
[1755028671551,0.00618,119680.0,119670.0,0.17556626]
[1755028671855,0.00618,119680.0,119670.0,0.30392626]
[1755028674143,0.17329229,119680.0,119670.0,0.30392626]
[1755028674994,0.17329229,119680.0,119670.0,0.1368]
[1755028675372,0.20747943,119680.0,119670.0,0.135]
[1755028675596,0.20747943,119680.0,119670.0,0.13744]
[1755028676390,0.20747943,119680.0,119670.0,0.135]
[1755028676740,0.20747943,119680.0,119670.0,0.13744]
[1755028676932,0.719162,119680.0,119670.0,0.00844]
[1755028677132,0.719162,119680.0,119670.0,0.13492]
[1755028677448,0.719162,119680.0,119670.0,0.13736]
[1755028677610,0.719162,119680.0,119670.0,0.13436]
[1755028677814,0.719162,119680.0,119670.0,0.13092]
[1755028678017,0.719162,119680.0,119670.0,0.13336]
[1755028678195,0.719162,119680.0,119670.0,0.13536]
[1755028678397,0.719162,119680.0,119670.0,0.13292]
[1755028678605,0.719162,119680.0,119670.0,0.13092]
[1755028678806,0.719162,119680.0,119670.0,0.13336]
[1755028679027,0.719162,119680.0,119670.0,0.13292]
[1755028679407,0.719162,119680.0,119670.0,0.13336]
[1755028679757,0.719162,119680.0,119670.0,0.13436]
[1755028679908,0.719162,119680.0,119670.0,0.12992]
[1755028680108,0.719162,119680.0,119670.0,0.13236]
[1755028680315,0.720162,119680.0,119670.0,0.13236]
[1755028680952,0.68597486,119680.0,119670.0,0.13236]
[1755028682118,0.68597486,119680.0,119670.0,0.13336]
[1755028682533,0.17429229,119680.0,119670.0,0.13336]
[1755028684446,0.17429229,119680.0,119670.0,0.30048626]
[1755028684835,0.17824529,119680.0,119670.0,0.30048626]
[1755028688437,0.17824529,119680.0,119670.0,0.30248626]
[1755028689906,0.17824529,119680.0,119670.0,0.30048626]
[1755028694960,0.17824529,119680.0,119670.0,0.30248626]
[1755028695411,0.005853,119680.0,119670.0,0.30248626]
[1755028695726,0.005853,119680.0,119670.0,0.81715883]
[1755028697697,0.003853,119680.0,119670.0,0.30547626]
[1755028697941,0.003853,119680.0,119670.0,0.81715883]
[1755028698364,0.003853,119680.0,119670.0,0.81615883]
[1755028698826,0.003853,119680.0,119670.0,0.81815883]
[1755028699261,0.003853,119680.0,119670.0,0.81715883]
[1755028699493,0.0796779,119700.0,119690.0,0.16709833]
[1755028699711,0.0816279,119700.0,119690.0,0.30589439]
[1755028700377,0.00195,119700.0,119690.0,0.30053833]
[1755028700825,0.00195,119700.0,119690.0,0.30452833]
[1755028701041,0.16707052,119710.0,119700.0,0.16952437]
[1755028701252,0.76350755,119710.0,119700.0,0.00244]
[1755028701448,0.866601,119710.0,119700.0,0.16952437]
[1755028702078,0.866601,119710.0,119700.0,0.00244]
[1755028702239,0.35491843,119710.0,119700.0,0.00244]
[1755028702444,0.866601,119710.0,119700.0,0.00244]
[1755028702689,0.867601,119710.0,119700.0,0.00244]
[1755028703255,0.868601,119710.0,119700.0,0.00244]
[1755028703458,0.35691843,119710.0,119700.0,0.16952437]
[1755028703653,0.78611657,119710.0,119700.0,0.16952437]
[1755028704128,0.78611657,119710.0,119700.0,0.00244]
[1755028704413,0.274434,119710.0,119700.0,0.00244]
[1755028704607,0.91499657,119710.0,119700.0,0.00244]
[1755028704838,0.997481,119710.0,119700.0,0.00244]
[1755028705955,0.48579843,119710.0,119700.0,0.00244]
[1755028706406,0.997481,119710.0,119700.0,0.00244]
[1755028706609,0.16708437,119700.0,119690.0,0.29853694]
[1755028706831,0.16903437,119700.0,119690.0,0.13144]
[1755028707041,0.68387694,119700.0,119690.0,0.13144]
[1755028707234,0.17219437,119700.0,119690.0,0.29609833]
[1755028707448,0.68387694,119700.0,119690.0,0.129]
[1755028707828,0.68387694,119700.0,119690.0,0.13144]
[1755028708031,0.68387694,119700.0,119690.0,0.129]
[1755028708242,0.68387694,119700.0,119690.0,0.13144]
[1755028708456,0.71590724,119700.0,119690.0,0.13144]
[1755028708659,0.71590724,119700.0,119690.0,0.29853833]
[1755028709270,0.20422467,119700.0,119690.0,0.13144]
[1755028709484,0.71590724,119700.0,119690.0,0.13144]
[1755028710365,0.81607951,119700.0,119690.0,0.00244]
[1755028711231,0.30439694,119700.0,119690.0,0.00244]
[1755028711470,0.81607951,119700.0,119690.0,0.00244]
[1755028711686,0.81807951,119700.0,119690.0,0.00244]
[1755028715874,0.81807951,119700.0,119690.0,0.00452]
[1755028716081,0.78604921,119700.0,119690.0,0.00452]
[1755028716644,0.27436664,119700.0,119690.0,0.00452]
[1755028716853,0.78604921,119700.0,119690.0,0.00452]
[1755028718319,0.002,119700.0,119690.0,0.17161833]
[1755028718534,0.16908437,119700.0,119690.0,0.17462833]
[1755028719372,0.16808437,119700.0,119690.0,0.17462833]
[1755028719584,0.16708437,119700.0,119690.0,0.17462833]
[1755028720254,0.2495688,119700.0,119690.0,0.00753]
[1755028720501,0.2495688,119700.0,119690.0,0.17462833]
[1755028720883,0.2495688,119700.0,119690.0,0.00753]
[1755028721061,0.2516888,119700.0,119690.0,0.00753]
[1755028721270,0.76643137,119700.0,119690.0,0.13328]
[1755028721475,0.16709833,119690.0,119670.0,0.17849257]
[1755028721691,0.67879486,119680.0,119670.0,0.18093257]
[1755028721895,0.00212,119680.0,119670.0,0.31177257]
[1755028722124,0.16711229,119680.0,119670.0,0.31177257]
[1755028722551,0.6818409,119690.0,119670.0,0.31177257]
[1755028722705,0.6818409,119690.0,119680.0,0.16711229]
[1755028723063,0.17227833,119690.0,119670.0,0.31269257]
[1755028723262,0.17227833,119690.0,119680.0,0.16711229]
[1755028723438,0.17227833,119690.0,119670.0,0.32013062]
[1755028724300,0.17227833,119690.0,119680.0,0.16711229]
[1755028724512,0.16921833,119690.0,119680.0,0.16919229]
[1755028725548,0.16921833,119690.0,119680.0,0.17220229]
[1755028727241,0.18359772,119690.0,119680.0,0.16711229]
[1755028727478,0.69834029,119690.0,119680.0,0.16711229]
[1755028727685,0.18665772,119690.0,119680.0,0.16711229]
[1755028727896,0.69834029,119690.0,119680.0,0.16711229]
[1755028728556,0.6809009,119690.0,119680.0,0.16919229]
[1755028728759,0.6809009,119690.0,119680.0,0.17220229]
[1755028729154,0.00212,119690.0,119680.0,0.17220229]
[1755028729406,0.77266558,119700.0,119680.0,0.17220229]
[1755028729614,0.87283785,119700.0,119690.0,0.12904]
[1755028729844,0.87495785,119700.0,119690.0,0.12904]
[1755028730570,0.36327528,119700.0,119690.0,0.12904]
[1755028730776,0.35809528,119700.0,119690.0,0.13657]
[1755028731175,0.36021528,119700.0,119690.0,0.13356]
[1755028731366,0.28079085,119700.0,119690.0,0.13356]
[1755028731582,0.28179085,119700.0,119690.0,0.13356]
[1755028731791,0.28179085,119700.0,119690.0,0.30065833]
[1755028732014,0.28179085,119700.0,119690.0,0.13356]
[1755028732747,0.79447342,119700.0,119690.0,0.13356]
[1755028733100,0.28279085,119700.0,119690.0,0.13356]
[1755028733705,0.29947433,119700.0,119690.0,0.13148]
[1755028733910,0.8111569,119700.0,119690.0,0.13148]
[1755028735587,0.8138569,119700.0,119690.0,0.13148]
[1755028736263,0.18225858,119700.0,119690.0,0.30366833]
[1755028737176,0.18531858,119700.0,119690.0,0.13148]
[1755028737578,0.69700115,119700.0,119690.0,0.13148]
[1755028737831,0.69394115,119700.0,119690.0,0.30065833]
[1755028738301,0.69700115,119700.0,119690.0,0.13356]
[1755028738516,0.18013858,119700.0,119690.0,0.30065833]
[1755028738749,0.0047,119700.0,119690.0,0.30366833]
[1755028739199,0.17178437,119700.0,119690.0,0.30366833]
[1755028740321,0.17178437,119700.0,119690.0,0.13657]
[1755028740572,0.76798137,119700.0,119690.0,0.00244]
[1755028740811,0.77104137,119700.0,119690.0,0.00244]
[1755028742762,0.85376462,119700.0,119690.0,0.00244]
[1755028743566,0.16709833,119690.0,119680.0,0.13152]
[1755028743846,0.6838709,119690.0,119680.0,0.13152]
[1755028743982,0.25467276,119690.0,119680.0,0.13152]
[1755028744196,0.76635533,119690.0,119680.0,0.13152]
[1755028746206,0.76635533,119690.0,119680.0,0.12908]
[1755028746425,0.76635533,119690.0,119680.0,0.13152]
[1755028746888,0.76635533,119690.0,119680.0,0.29863229]
[1755028747091,0.76635533,119690.0,119680.0,0.13152]
[1755028747508,0.17218833,119690.0,119680.0,0.13152]
[1755028749007,0.6838709,119690.0,119680.0,0.13152]
[1755028750326,0.17218833,119690.0,119680.0,0.13152]
[1755028750738,0.17218833,119690.0,119680.0,0.29863229]
[1755028750955,0.16912833,119690.0,119680.0,0.30078229]
[1755028751157,0.16709833,119690.0,119680.0,0.30395229]
[1755028752984,0.78656919,119700.0,119680.0,0.30395229]
[1755028753194,0.80401821,119700.0,119690.0,0.00244]
[1755028753357,0.80401821,119700.0,119690.0,0.00776]
[1755028753358,0.29233564,119700.0,119690.0,0.00776]
[1755028753559,0.29233564,119700.0,119690.0,0.17485833]
[1755028753863,0.025079,119700.0,119690.0,0.17485833]
[1755028754062,8.121e-05,119710.0,119700.0,0.16952437]
[1755028754268,0.02515621,119710.0,119700.0,0.30079437]
[1755028754472,0.02515621,119710.0,119700.0,0.30396437]
[1755028754648,8.121e-05,119710.0,119700.0,0.30396437]
[1755028755264,0.16715163,119710.0,119700.0,0.30396437]
[1755028755468,8.121e-05,119710.0,119700.0,0.30396437]
[1755028757570,0.00278121,119710.0,119700.0,0.30396437]
[1755028758221,0.16985163,119710.0,119700.0,0.30396437]
[1755028758420,0.00278121,119710.0,119700.0,0.81564694]
[1755028758852,0.00278121,119710.0,119700.0,0.30396437]
[1755028759977,0.16985163,119710.0,119700.0,0.30396437]
[1755028760374,0.00278121,119710.0,119700.0,0.30396437]
[1755028760810,0.16985163,119710.0,119700.0,0.30396437]
[1755028761486,0.16985163,119710.0,119700.0,0.13168]
[1755028761487,0.17494163,119710.0,119700.0,0.13168]
[1755028761702,0.6866242,119710.0,119700.0,0.13168]
[1755028761935,0.18329515,119710.0,119700.0,0.00244]
[1755028762151,0.16709676,119700.0,119690.0,0.00244]
[1755028762366,0.16709833,119690.0,119680.0,0.3103083]
[1755028762585,0.6787809,119690.0,119680.0,0.3124583]
[1755028762803,0.6787809,119690.0,119680.0,0.3100183]
[1755028763026,0.16709833,119690.0,119680.0,0.3124583]
[1755028763247,0.6787809,119690.0,119680.0,0.137]
[1755028763479,0.6808109,119690.0,119680.0,0.13531]
[1755028763715,0.6838709,119690.0,119680.0,0.13531]
[1755028764151,0.6838709,119690.0,119680.0,0.00459]
[1755028764377,0.6838709,119690.0,119680.0,0.13412]
[1755028765276,0.17218833,119690.0,119680.0,0.13412]
[1755028765492,0.6838709,119690.0,119680.0,0.13412]
[1755028766350,0.78404317,119690.0,119680.0,0.13412]
[1755028767664,0.78404317,119690.0,119680.0,0.00344]
[1755028767881,1.37821017,119690.0,119680.0,0.001]
[1755028768087,0.8665276,119690.0,119680.0,0.001]
[1755028768296,0.18456131,119680.0,119670.0,0.13324]
[1755028768495,0.78099713,119680.0,119670.0,0.13324]
[1755028768709,0.27237456,119680.0,119670.0,0.13324]
[1755028768915,0.78405713,119680.0,119670.0,0.13324]
[1755028769542,0.78505713,119680.0,119670.0,0.1353]
[1755028769761,0.27337456,119680.0,119670.0,0.1353]
[1755028769974,0.78505713,119680.0,119670.0,0.1353]
[1755028770531,0.78199713,119680.0,119670.0,0.1353]
[1755028770744,0.78199713,119680.0,119670.0,0.13853]
[1755028771106,0.81546329,119680.0,119670.0,0.1353]
[1755028771421,0.84371629,119680.0,119670.0,0.13324]
[1755028771863,0.29856756,119680.0,119670.0,0.13324]
[1755028772039,0.81025013,119680.0,119670.0,0.13324]
[1755028772244,0.29856756,119680.0,119670.0,0.13324]
[1755028772418,0.81025013,119680.0,119670.0,0.1353]
[1755028772625,0.80708013,119680.0,119670.0,0.13853]
[1755028772873,0.29539756,119680.0,119670.0,0.13853]
[1755028773152,0.85364672,119680.0,119670.0,0.13853]
[1755028773494,0.85364672,119680.0,119670.0,0.1353]
[1755028773694,0.85364672,119680.0,119670.0,0.13853]
[1755028774408,0.85681672,119680.0,119670.0,0.1353]
[1755028774850,0.85364672,119680.0,119670.0,0.30242626]
[1755028775385,0.23976188,119680.0,119670.0,0.30565626]
[1755028775820,0.21467888,119680.0,119670.0,0.30565626]
[1755028776228,0.21467888,119680.0,119670.0,0.13853]
[1755028776434,0.21467888,119680.0,119670.0,0.30565626]
[1755028776842,0.21677888,119680.0,119670.0,0.13853]
[1755028777119,0.72846145,119680.0,119670.0,0.13853]
[1755028777320,0.72846145,119680.0,119670.0,0.1353]
[1755028777937,0.72846145,119680.0,119670.0,0.30242626]
[1755028778138,0.21467888,119680.0,119670.0,0.30565626]
[1755028778768,0.21467888,119680.0,119670.0,0.13853]
[1755028779061,0.21677888,119680.0,119670.0,0.13853]
[1755028779495,0.21677888,119680.0,119670.0,0.30565626]
[1755028780104,0.72846145,119680.0,119670.0,0.30565626]
[1755028780305,0.001,119680.0,119670.0,0.30565626]
[1755028781397,0.16709833,119690.0,119680.0,0.16711229]
[1755028781547,0.16709833,119690.0,119680.0,0.16917229]
[1755028781754,0.16709833,119690.0,119680.0,0.17240229]
[1755028783007,0.16709833,119690.0,119680.0,0.17484229]